fUST/lending_fUST_20250508
["ID","MTS","AMOUNT","RATE_DAILY","PERIOD"]
[360280926,1746696633534,-756.77,0.00010958,2]
[360280927,1746696633543,-400.0,0.00010958,2]
[360280928,1746696633555,-487.45,0.00010958,2]
[360280929,1746696633564,-400.0,0.00010958,2]
[360280930,1746696633574,-400.0,0.00010958,2]
[360280931,1746696633583,-1965.33,0.00010958,2]
[360280932,1746696633593,-538.71,0.00010958,2]
[360280933,1746696633603,-1239.36,0.00010958,2]
[360280934,1746696633612,-400.0,0.00010958,2]
[360280935,1746696633621,-400.0,0.00010958,2]
[360280936,1746696633630,-400.0,0.00010958,2]
[360280937,1746696633639,-400.0,0.00010958,2]
[360280938,1746696633649,-400.0,0.00010958,2]
[360280939,1746696633658,-447.12,0.00010958,2]
[360280940,1746696633667,-484.7,0.00010958,2]
[360280941,1746696633676,-489.57,0.00010958,2]
[360280942,1746696633686,-500.0,0.00010958,2]
[360280943,1746696633696,-500.0,0.00011231,2]
[360280944,1746696633705,-229.80006215,0.00011231,2]
[360280945,1746696633714,-219.36952522,0.00011231,2]
[360280946,1746696633724,-207.57383891,0.00011231,2]
[360280947,1746696633733,-400.0,0.00011232,2]
[360280948,1746696633742,-473.62,0.00011232,2]
[360280949,1746696633752,-400.0,0.00011232,2]
[360280950,1746696633761,-577.48,0.00011232,2]
[360280951,1746696633771,-833.53,0.00011232,2]
[360280952,1746696633781,-400.0,0.00011232,2]
[360280953,1746696633791,-400.0,0.00011232,2]
[360280954,1746696633802,-400.0,0.00011232,2]
[360280955,1746696633811,-400.0,0.00011232,2]
[360280956,1746696633820,-400.0,0.00011232,2]
[360280957,1746696633829,-403.82,0.00011232,2]
[360280958,1746696633838,-400.0,0.00011232,2]
[360280959,1746696633848,-1433.03,0.00011232,2]
[360280960,1746696633857,-864.11,0.00011232,2]
[360280961,1746696633866,-400.0,0.00011232,2]
[360280962,1746696633875,-400.0,0.00011232,2]
[360280963,1746696633884,-400.0,0.00011232,2]
[360280964,1746696633893,-479.43,0.00011232,2]
[360280965,1746696633902,-400.0,0.00011232,2]
[360280966,1746696633911,-400.0,0.00011232,2]
[360280967,1746696633921,-400.0,0.00011232,2]
[360280968,1746696633931,-400.0,0.00011232,2]
[360280969,1746696633940,-400.0,0.00011232,2]
[360280970,1746696633950,-400.0,0.00011232,2]
[360280971,1746696633982,-400.0,0.00011232,2]
[360280972,1746696633992,-400.0,0.00011232,2]
[360280973,1746696634001,-400.0,0.00011232,2]
[360280974,1746696634011,-467.54,0.00011232,2]
[360280975,1746696634021,-400.0,0.00011232,2]
[360280976,1746696634030,-400.0,0.00011232,2]
[360280977,1746696634040,-879.23,0.00011232,2]
[360280978,1746696634050,-309.33180774,0.00011232,2]
[360280979,1746696634060,-400.0,0.00011232,2]
[360280980,1746696634069,-721.15,0.00011232,2]
[360280981,1746696634079,-400.0,0.00011232,2]
[360280982,1746696634089,-400.0,0.00011232,2]
[360280983,1746696634098,-400.0,0.00011232,2]
[360280984,1746696634108,-400.0,0.00011232,2]
[360280985,1746696634122,-400.0,0.00011232,2]
[360280986,1746696634132,-472.81,0.00011232,2]
[360280987,1746696634142,-904.08,0.00011232,2]
[360280988,1746696634153,-400.0,0.00011232,2]
[360280989,1746696634163,-400.0,0.00011232,2]
[360280990,1746696634174,-551.18,0.00011232,2]
[360280991,1746696634184,-400.0,0.00011232,2]
[360280992,1746696634195,-649.47,0.00011232,2]
[360280993,1746696634206,-400.0,0.00011232,2]
[360280994,1746696634216,-594.67,0.00011232,2]
[360280995,1746696634226,-400.0,0.00011232,2]
[360280996,1746696634235,-400.0,0.00011232,2]
[360280997,1746696634246,-615.44,0.00011232,2]
[360280998,1746696634255,-400.0,0.00011232,2]
[360280999,1746696634266,-400.0,0.00011232,2]
[360281000,1746696634277,-1187.85,0.00011232,2]
[360281001,1746696634287,-1757.28,0.00011232,2]
[360281002,1746696634297,-438.11,0.00011232,2]
[360281003,1746696634307,-635.72,0.00011232,2]
[360281004,1746696634317,-400.0,0.00011232,2]
[360281005,1746696634328,-400.0,0.00011232,2]
[360281006,1746696634337,-472.11,0.00011232,2]
[360281007,1746696634346,-400.0,0.00011232,2]
[360281008,1746696634356,-817.72,0.00011232,2]
[360281009,1746696634366,-400.0,0.00011232,2]
[360281010,1746696634376,-648.06,0.00011232,2]
[360281011,1746696634387,-400.0,0.00011232,2]
[360281012,1746696634397,-1871.12,0.00011232,2]
[360281013,1746696634407,-400.0,0.00011232,2]
[360281014,1746696634417,-400.0,0.00011232,2]
[360281015,1746696634427,-756.77,0.00011232,2]
[360281016,1746696634436,-400.0,0.00011232,2]
[360281017,1746696634446,-487.45,0.00011232,2]
[360281018,1746696634456,-400.0,0.00011232,2]
[360281019,1746696634466,-400.0,0.00011232,2]
[360281020,1746696634476,-1965.33,0.00011232,2]
[360281021,1746696634485,-538.71,0.00011232,2]
[360281022,1746696634495,-1239.36,0.00011232,2]
[360281023,1746696634504,-400.0,0.00011232,2]
[360281024,1746696634513,-400.0,0.00011232,2]
[360281025,1746696634523,-400.0,0.00011232,2]
[360281026,1746696634533,-400.0,0.00011232,2]
[360281027,1746696634542,-400.0,0.00011232,2]
[360281028,1746696634552,-447.12,0.00011232,2]
[360281029,1746696634561,-484.7,0.00011232,2]
[360281030,1746696634571,-489.57,0.00011232,2]
[360281031,1746696634581,-152.0,0.00011485,2]
[360281032,1746696634591,-586.6486198,0.000115,2]
[360281033,1746696634600,-166.9338774,0.000115,2]
[360281034,1746696634610,-400.0,0.00011506,2]
[360281035,1746696634619,-473.62,0.00011506,2]
[360281036,1746696634629,-400.0,0.00011506,2]
[360281037,1746696634639,-577.48,0.00011506,2]
[360281038,1746696634649,-833.53,0.00011506,2]
[360281039,1746696634658,-400.0,0.00011506,2]
[360281040,1746696634668,-400.0,0.00011506,2]
[360281041,1746696634677,-164.03298772,0.00011506,2]
[360281042,1746696634687,-400.0,0.00011506,2]
[360281043,1746696634696,-400.0,0.00011506,2]
[360281044,1746696634706,-403.82,0.00011506,2]
[360281045,1746696634716,-400.0,0.00011506,2]
[360281046,1746696634726,-1433.03,0.00011506,2]
[360281047,1746696634736,-864.11,0.00011506,2]
[360281048,1746696634745,-400.0,0.00011506,2]
[360281049,1746696634755,-400.0,0.00011506,2]
[360281050,1746696634765,-400.0,0.00011506,2]
[360281051,1746696634774,-479.43,0.00011506,2]
[360281052,1746696634784,-400.0,0.00011506,2]
[360281053,1746696634794,-400.0,0.00011506,2]
[360281054,1746696634805,-400.0,0.00011506,2]
[360281055,1746696634815,-400.0,0.00011506,2]
[360281056,1746696634825,-400.0,0.00011506,2]
[360281057,1746696634834,-400.0,0.00011506,2]
[360281058,1746696634844,-400.0,0.00011506,2]
[360281059,1746696634854,-400.0,0.00011506,2]
[360281060,1746696634864,-400.0,0.00011506,2]
[360281061,1746696634873,-467.54,0.00011506,2]
[360281062,1746696634883,-400.0,0.00011506,2]
[360281063,1746696634893,-400.0,0.00011506,2]
[360281064,1746696634902,-879.23,0.00011506,2]
[360281065,1746696634912,-316.44227118,0.00011506,2]
[360281066,1746696634921,-721.15,0.00011506,2]
[360281067,1746696634931,-400.0,0.00011506,2]
[360281068,1746696634941,-400.0,0.00011506,2]
[360281069,1746696634950,-400.0,0.00011506,2]
[360281070,1746696634959,-400.0,0.00011506,2]
[360281071,1746696634968,-258.73601206,0.00011506,2]
[360281072,1746696634978,-472.81,0.00011506,2]
[360281073,1746696634988,-904.08,0.00011506,2]
[360281074,1746696634998,-400.0,0.00011506,2]
[360281075,1746696635007,-400.0,0.00011506,2]
[360281076,1746696635020,-551.18,0.00011506,2]
[360281077,1746696635030,-400.0,0.00011506,2]
[360281078,1746696635040,-649.47,0.00011506,2]
[360281079,1746696635050,-400.0,0.00011506,2]
[360281080,1746696635061,-594.67,0.00011506,2]
[360281081,1746696635071,-400.0,0.00011506,2]
[360281082,1746696635080,-400.0,0.00011506,2]
[360281083,1746696635090,-491.42281676,0.00011506,2]
[360281084,1746696635111,-124.01718324,0.00011506,2]
[360281085,1746696635125,-400.0,0.00011506,2]
[360281086,1746696635135,-400.0,0.00011506,2]
[360281087,1746696635145,-1187.85,0.00011506,2]
[360281088,1746696635156,-1757.28,0.00011506,2]
[360281089,1746696635166,-438.11,0.00011506,2]
[360281090,1746696635176,-635.72,0.00011506,2]
[360281091,1746696635187,-400.0,0.00011506,2]
[360281092,1746696635197,-400.0,0.00011506,2]
[360281093,1746696635209,-472.11,0.00011506,2]
[360281094,1746696635219,-400.0,0.00011506,2]
[360281095,1746696635228,-817.72,0.00011506,2]
[360281096,1746696635237,-400.0,0.00011506,2]
[360281097,1746696635247,-270.0,0.00011506,2]
[360281098,1746696635256,-270.0,0.00011506,2]
[360281099,1746696635265,-648.06,0.00011506,2]
[360281100,1746696635275,-400.0,0.00011506,2]
[360281101,1746696635285,-151.0,0.00011506,2]
[360281102,1746696635294,-1871.12,0.00011506,2]
[360281103,1746696635305,-400.0,0.00011506,2]
[360281104,1746696635314,-400.0,0.00011506,2]
[360281105,1746696635325,-756.77,0.00011506,2]
[360281106,1746696635334,-400.0,0.00011506,2]
[360281107,1746696635344,-12.12786806,0.00011506,2]
[360281108,1746696635356,-475.32213194,0.00011506,2]
[360281109,1746696635365,-400.0,0.00011506,2]
[360281110,1746696635375,-400.0,0.00011506,2]
[360281111,1746696635384,-1965.33,0.00011506,2]
[360281112,1746696635394,-538.71,0.00011506,2]
[360281113,1746696635403,-1239.36,0.00011506,2]
[360281114,1746696635413,-473.72391472,0.00011506,2]
[360281115,1746696635423,-400.0,0.00011506,2]
[360281116,1746696635432,-159.9861671,0.00011506,2]
[360281117,1746696635445,-240.0138329,0.00011506,2]
[360281118,1746696635454,-400.0,0.00011506,2]
[360281119,1746696635464,-400.0,0.00011506,2]
[360281120,1746696635473,-447.12,0.00011506,2]
[360281121,1746696635482,-484.7,0.00011506,2]
[360281122,1746696635491,-489.57,0.00011506,2]
[360281123,1746696635501,-573.44836492,0.00011636,2]
[360281124,1746696635510,-420.0,0.00011714,2]
[360281125,1746696635520,-300.0,0.00011714,2]
[360281126,1746696635529,-300.0,0.00011714,2]
[360281127,1746696635539,-1680.0,0.00011721,2]
[360281128,1746696635549,-212.10144473,0.00011749,2]
[360281129,1746696635559,-160.0,0.00011749,2]
[360281130,1746696635568,-160.0,0.00011749,2]
[360281131,1746696635578,-160.0,0.00011749,2]
[360281132,1746696635587,-10297.25238463,0.00011749,2]
[360281153,1746696638499,-791.07,0.00010958,2]
[360281155,1746696638509,-791.07,0.00011232,2]
[360281157,1746696638519,-729.23400939,0.00011506,2]
[360281159,1746696638607,-61.83599061,0.00011506,2]
[360281160,1746696638618,-2317.98267642,0.00011749,2]
[360281161,1746696638629,-160.0,0.00011749,2]
[360281162,1746696638639,-160.0,0.00011749,2]
[360281163,1746696638649,-422.07246323,0.00011749,2]
[360281164,1746696638659,-314.04909194,0.00011749,2]
[360281165,1746696638668,-160.0,0.00011749,2]
[360281166,1746696638678,-496.288,0.00011755,2]
[360281167,1746696638687,-546.0,0.00011755,2]
[360281168,1746696638697,-270.0,0.00011755,2]
[360281169,1746696638707,-270.0,0.00011755,2]
[360281170,1746696638716,-151.0,0.00011755,2]
[360281171,1746696638725,-400.0,0.0001178,2]
[360281173,1746696638735,-269.067048,0.0001178,2]
[360281175,1746696638746,-473.62,0.0001178,2]
[360281177,1746696638755,-400.0,0.0001178,2]
[360281179,1746696638765,-577.48,0.0001178,2]
[360281181,1746696638774,-833.53,0.0001178,2]
[360281183,1746696638784,-151.0,0.0001178,2]
[360281185,1746696638794,-151.0,0.0001178,2]
[360281187,1746696638803,-400.0,0.0001178,2]
[360281189,1746696638814,-429.64956693,0.0001178,2]
[360281191,1746696638824,-388.98991942,0.0001178,2]
[360281193,1746696638834,-400.0,0.0001178,2]
[360281195,1746696638843,-403.82,0.0001178,2]
[360281197,1746696638853,-400.0,0.0001178,2]
[360281206,1746696639010,-1433.03,0.0001178,2]
[360281207,1746696639021,-864.11,0.0001178,2]
[360281208,1746696639032,-400.0,0.0001178,2]
[360281209,1746696639042,-400.0,0.0001178,2]
[360281210,1746696639052,-400.0,0.0001178,2]
[360281211,1746696639062,-479.43,0.0001178,2]
[360281212,1746696639072,-400.0,0.0001178,2]
[360281213,1746696639082,-400.0,0.0001178,2]
[360281214,1746696639092,-400.0,0.0001178,2]
[360281215,1746696639102,-415.36479251,0.0001178,2]
[360281216,1746696639115,-400.0,0.0001178,2]
[360281217,1746696639124,-400.0,0.0001178,2]
[360281218,1746696639136,-400.0,0.0001178,2]
[360281219,1746696639150,-400.0,0.0001178,2]
[360281220,1746696639159,-400.0,0.0001178,2]
[360281221,1746696639169,-467.54,0.0001178,2]
[360281222,1746696639180,-400.0,0.0001178,2]
[360281223,1746696639191,-400.0,0.0001178,2]
[360281224,1746696639201,-721.15,0.0001178,2]
[360281225,1746696639211,-400.0,0.0001178,2]
[360281226,1746696639220,-400.0,0.0001178,2]
[360281227,1746696639230,-400.0,0.0001178,2]
[360281228,1746696639240,-400.0,0.0001178,2]
[360281229,1746696639249,-472.81,0.0001178,2]
[360281230,1746696639259,-400.0,0.0001178,2]
[360281231,1746696639269,-400.0,0.0001178,2]
[360281232,1746696639279,-551.18,0.0001178,2]
[360281233,1746696639288,-400.0,0.0001178,2]
[360281234,1746696639298,-649.47,0.0001178,2]
[360281235,1746696639308,-400.0,0.0001178,2]
[360281236,1746696639318,-594.67,0.0001178,2]
[360281237,1746696639327,-400.0,0.0001178,2]
[360281238,1746696639337,-400.0,0.0001178,2]
[360281239,1746696639348,-615.44,0.0001178,2]
[360281240,1746696639357,-400.0,0.0001178,2]
[360281241,1746696639367,-400.0,0.0001178,2]
[360281242,1746696639377,-1187.85,0.0001178,2]
[360281243,1746696639387,-1757.28,0.0001178,2]
[360281244,1746696639397,-438.11,0.0001178,2]
[360281245,1746696639406,-635.72,0.0001178,2]
[360281246,1746696639416,-400.0,0.0001178,2]
[360281247,1746696639426,-400.0,0.0001178,2]
[360281248,1746696639436,-472.11,0.0001178,2]
[360281249,1746696639446,-400.0,0.0001178,2]
[360281250,1746696639455,-400.0,0.0001178,2]
[360281251,1746696639465,-817.72,0.0001178,2]
[360281252,1746696639475,-270.0,0.0001178,2]
[360281253,1746696639484,-648.06,0.0001178,2]
[360281254,1746696639494,-270.0,0.0001178,2]
[360281255,1746696639503,-400.0,0.0001178,2]
[360281256,1746696639512,-151.0,0.0001178,2]
[360281257,1746696639521,-1871.12,0.0001178,2]
[360281258,1746696639531,-400.0,0.0001178,2]
[360281259,1746696639540,-400.0,0.0001178,2]
[360281260,1746696639550,-756.77,0.0001178,2]
[360281261,1746696639560,-400.0,0.0001178,2]
[360281262,1746696639569,-487.45,0.0001178,2]
[360281263,1746696639579,-400.0,0.0001178,2]
[360281264,1746696639589,-400.0,0.0001178,2]
[360281265,1746696639598,-1965.33,0.0001178,2]
[360281266,1746696639608,-538.71,0.0001178,2]
[360281267,1746696639618,-1239.36,0.0001178,2]
[360281268,1746696639628,-400.0,0.0001178,2]
[360281269,1746696639637,-400.0,0.0001178,2]
[360281270,1746696639646,-400.0,0.0001178,2]
[360281271,1746696639656,-400.0,0.0001178,2]
[360281272,1746696639665,-447.12,0.0001178,2]
[360281273,1746696639675,-484.7,0.0001178,2]
[360281274,1746696639684,-489.57,0.0001178,2]
[360281275,1746696639694,-791.07,0.0001178,2]
[360281276,1746696639704,-150.38,0.00011785,2]
[360281277,1746696639714,-151.893,0.00011812,2]
[360281278,1746696639725,-150.0,0.00011812,2]
[360281279,1746696639734,-151.379,0.00011812,2]
[360281280,1746696639745,-151.0,0.00012054,2]
[360281281,1746696639754,-151.0,0.00012054,2]
[360281282,1746696639764,-400.0,0.00012054,2]
[360281283,1746696639773,-473.62,0.00012054,2]
[360281285,1746696639782,-400.0,0.00012054,2]
[360281286,1746696639791,-577.48,0.00012054,2]
[360281287,1746696639801,-833.53,0.00012054,2]
[360281288,1746696639810,-151.0,0.00012054,2]
[360281289,1746696639819,-400.0,0.00012054,2]
[360281290,1746696639829,-400.0,0.00012054,2]
[360281291,1746696639838,-403.82,0.00012054,2]
[360281293,1746696639848,-400.0,0.00012054,2]
[360281294,1746696639858,-1433.03,0.00012054,2]
[360281295,1746696639868,-864.11,0.00012054,2]
[360281296,1746696639878,-400.0,0.00012054,2]
[360281297,1746696639887,-400.0,0.00012054,2]
[360281298,1746696639897,-400.0,0.00012054,2]
[360281299,1746696639906,-479.43,0.00012054,2]
[360281300,1746696639916,-546.17694949,0.00012054,2]
[360281301,1746696639926,-400.0,0.00012054,2]
[360281302,1746696639935,-400.0,0.00012054,2]
[360281303,1746696639945,-400.0,0.00012054,2]
[360281304,1746696639955,-400.0,0.00012054,2]
[360281305,1746696639964,-400.0,0.00012054,2]
[360281306,1746696639974,-400.0,0.00012054,2]
[360281307,1746696639985,-400.0,0.00012054,2]
[360281308,1746696639995,-467.54,0.00012054,2]
[360281309,1746696640007,-400.0,0.00012054,2]
[360281310,1746696640021,-400.0,0.00012054,2]
[360281311,1746696640032,-721.15,0.00012054,2]
[360281312,1746696640043,-400.0,0.00012054,2]
[360281313,1746696640053,-400.0,0.00012054,2]
[360281314,1746696640062,-400.0,0.00012054,2]
[360281315,1746696640071,-400.0,0.00012054,2]
[360281316,1746696640081,-472.81,0.00012054,2]
[360281317,1746696640091,-400.0,0.00012054,2]
[360281318,1746696640100,-400.0,0.00012054,2]
[360281319,1746696640111,-551.18,0.00012054,2]
[360281320,1746696640122,-400.0,0.00012054,2]
[360281321,1746696640132,-649.47,0.00012054,2]
[360281322,1746696640141,-400.0,0.00012054,2]
[360281323,1746696640151,-594.67,0.00012054,2]
[360281324,1746696640160,-400.0,0.00012054,2]
[360281325,1746696640169,-400.0,0.00012054,2]
[360281326,1746696640179,-615.44,0.00012054,2]
[360281327,1746696640190,-400.0,0.00012054,2]
[360281328,1746696640199,-400.0,0.00012054,2]
[360281329,1746696640208,-1187.85,0.00012054,2]
[360281330,1746696640218,-1757.28,0.00012054,2]
[360281331,1746696640227,-438.11,0.00012054,2]
[360281333,1746696640237,-635.72,0.00012054,2]
[360281335,1746696640246,-400.0,0.00012054,2]
[360281337,1746696640257,-400.0,0.00012054,2]
[360281339,1746696640268,-472.11,0.00012054,2]
[360281341,1746696640278,-400.0,0.00012054,2]
[360281342,1746696640288,-400.0,0.00012054,2]
[360281343,1746696640298,-817.72,0.00012054,2]
[360281345,1746696640308,-270.0,0.00012054,2]
[360281347,1746696640318,-648.06,0.00012054,2]
[360281348,1746696640327,-270.0,0.00012054,2]
[360281349,1746696640338,-400.0,0.00012054,2]
[360281350,1746696640347,-151.0,0.00012054,2]
[360281351,1746696640357,-1871.12,0.00012054,2]
[360281352,1746696640366,-400.0,0.00012054,2]
[360281353,1746696640376,-400.0,0.00012054,2]
[360281354,1746696640385,-756.77,0.00012054,2]
[360281355,1746696640395,-400.0,0.00012054,2]
[360281356,1746696640405,-487.45,0.00012054,2]
[360281358,1746696640414,-400.0,0.00012054,2]
[360281359,1746696640424,-400.0,0.00012054,2]
[360281360,1746696640434,-1965.33,0.00012054,2]
[360281362,1746696640444,-538.71,0.00012054,2]
[360281364,1746696640454,-1239.36,0.00012054,2]
[360281366,1746696640463,-400.0,0.00012054,2]
[360281368,1746696640473,-400.0,0.00012054,2]
[360281370,1746696640483,-400.0,0.00012054,2]
[360281372,1746696640492,-400.0,0.00012054,2]
[360281374,1746696640502,-447.12,0.00012054,2]
[360281376,1746696640511,-484.7,0.00012054,2]
[360281378,1746696640520,-489.57,0.00012054,2]
[360281380,1746696640530,-791.07,0.00012054,2]
[360281381,1746696640542,-568.3577504,0.00012173,2]
[360281383,1746696640552,-568.3577504,0.00012173,2]
[360281385,1746696640561,-568.3577504,0.00012173,2]
[360281387,1746696640570,-568.3577504,0.00012173,2]
[360281389,1746696640579,-229.77117841,0.00012194,2]
[360281391,1746696640589,-80238.53188518,0.00012226,2]
[360281393,1746696640598,-151.0,0.00012226,2]
[360281395,1746696640607,-151.0,0.00012226,2]
[360281397,1746696640617,-270.0,0.00012226,2]
[360281399,1746696640626,-270.0,0.00012226,2]
[360281401,1746696640636,-151.0,0.00012226,2]
[360281403,1746696640645,-151.0,0.00012328,2]
[360281405,1746696640656,-400.0,0.00012328,2]
[360281407,1746696640665,-473.62,0.00012328,2]
[360281409,1746696640675,-400.0,0.00012328,2]
[360281411,1746696640684,-577.48,0.00012328,2]
[360281413,1746696640696,-833.53,0.00012328,2]
[360281415,1746696640706,-151.0,0.00012328,2]
[360281417,1746696640715,-400.0,0.00012328,2]
[360281419,1746696640725,-400.0,0.00012328,2]
[360281421,1746696640734,-403.82,0.00012328,2]
[360281423,1746696640744,-400.0,0.00012328,2]
[360281425,1746696640754,-1433.03,0.00012328,2]
[360281427,1746696640764,-864.11,0.00012328,2]
[360281430,1746696640774,-400.0,0.00012328,2]
[360281432,1746696640783,-400.0,0.00012328,2]
[360281433,1746696640793,-400.0,0.00012328,2]
[360281435,1746696640803,-479.43,0.00012328,2]
[360281437,1746696640812,-400.0,0.00012328,2]
[360281439,1746696640822,-400.0,0.00012328,2]
[360281441,1746696640832,-400.0,0.00012328,2]
[360281443,1746696640842,-400.0,0.00012328,2]
[360281445,1746696640851,-400.0,0.00012328,2]
[360281447,1746696640861,-400.0,0.00012328,2]
[360281449,1746696640870,-400.0,0.00012328,2]
[360281450,1746696640880,-467.54,0.00012328,2]
[360281451,1746696640890,-400.0,0.00012328,2]
[360281452,1746696640900,-400.0,0.00012328,2]
[360281453,1746696640909,-721.15,0.00012328,2]
[360281454,1746696640918,-400.0,0.00012328,2]
[360281455,1746696640928,-402.36947263,0.00012328,2]
[360281456,1746696640937,-400.0,0.00012328,2]
[360281457,1746696640947,-400.0,0.00012328,2]
[360281458,1746696640956,-472.81,0.00012328,2]
[360281459,1746696640965,-328.24258327,0.00012328,2]
[360281460,1746696640974,-400.0,0.00012328,2]
[360281461,1746696640984,-551.18,0.00012328,2]
[360281462,1746696640993,-400.0,0.00012328,2]
[360281463,1746696641003,-649.47,0.00012328,2]
[360281464,1746696641012,-364.47461708,0.00012328,2]
[360281465,1746696641022,-594.67,0.00012328,2]
[360281466,1746696641031,-400.0,0.00012328,2]
[360281467,1746696641042,-400.0,0.00012328,2]
[360281468,1746696641052,-615.44,0.00012328,2]
[360281469,1746696641061,-400.0,0.00012328,2]
[360281470,1746696641071,-400.0,0.00012328,2]
[360281471,1746696641082,-1187.85,0.00012328,2]
[360281472,1746696641093,-1757.28,0.00012328,2]
[360281473,1746696641104,-438.11,0.00012328,2]
[360281474,1746696641117,-635.72,0.00012328,2]
[360281475,1746696641128,-400.0,0.00012328,2]
[360281476,1746696641139,-400.0,0.00012328,2]
[360281477,1746696641148,-472.11,0.00012328,2]
[360281478,1746696641158,-400.0,0.00012328,2]
[360281479,1746696641169,-446.54890223,0.00012328,2]
[360281480,1746696641179,-817.72,0.00012328,2]
[360281481,1746696641191,-270.0,0.00012328,2]
[360281482,1746696641201,-648.06,0.00012328,2]
[360281483,1746696641210,-270.0,0.00012328,2]
[360281484,1746696641219,-400.0,0.00012328,2]
[360281485,1746696641228,-1871.12,0.00012328,2]
[360281486,1746696641238,-151.0,0.00012328,2]
[360281487,1746696641248,-400.0,0.00012328,2]
[360281488,1746696641257,-400.0,0.00012328,2]
[360281489,1746696641267,-756.77,0.00012328,2]
[360281490,1746696641279,-400.0,0.00012328,2]
[360281491,1746696641290,-487.45,0.00012328,2]
[360281492,1746696641299,-400.0,0.00012328,2]
[360281493,1746696641309,-400.0,0.00012328,2]
[360281494,1746696641320,-1965.33,0.00012328,2]
[360281495,1746696641331,-538.71,0.00012328,2]
[360281496,1746696641341,-1239.36,0.00012328,2]
[360281497,1746696641352,-400.0,0.00012328,2]
[360281498,1746696641363,-400.0,0.00012328,2]
[360281499,1746696641372,-400.0,0.00012328,2]
[360281500,1746696641382,-400.0,0.00012328,2]
[360281501,1746696641391,-447.12,0.00012328,2]
[360281502,1746696641434,-484.7,0.00012328,2]
[360281503,1746696641444,-489.57,0.00012328,2]
[360281504,1746696641453,-791.07,0.00012328,2]
[360281505,1746696641462,-201.91,0.00012329,2]
[360281506,1746696641471,-168.26,0.00012329,2]
[360281507,1746696641481,-841.3,0.00012329,2]
[360281508,1746696641490,-151.0,0.000124,2]
[360281509,1746696641500,-470.92737325,0.00012473,2]
[360281510,1746696641508,-500.0,0.00012473,2]
[360281511,1746696641518,-500.0,0.00012473,2]
[360281512,1746696641527,-500.0,0.00012473,2]
[360281513,1746696641536,-614.23204567,0.00012473,2]
[360281514,1746696641545,-500.0,0.00012473,2]
[360281515,1746696641555,-208.51121309,0.00012473,2]
[360281516,1746696641564,-556.5710869,0.00012473,2]
[360281517,1746696641574,-500.0,0.00012473,2]
[360281518,1746696641583,-500.0,0.00012473,2]
[360281519,1746696641593,-502.07788518,0.00012473,2]
[360281520,1746696641602,-500.0,0.00012473,2]
[360281521,1746696641612,-500.0,0.00012473,2]
[360281522,1746696641621,-500.0,0.00012473,2]
[360281523,1746696641630,-500.0,0.00012473,2]